[Event "Czech Open-Rapid 2022"]
[Site "Pardubice"]
[Date "2022.07.20"]
[Round "3.27"]
[White "Mladek, Richard"]
[Black "Dolensky, Filip"]
[Result "1-0"]
[ECO "E92"]
[WhiteElo "2330"]
[BlackElo "2051"]
[Annotator "TA"]
[PlyCount "63"]
[EventDate "2022.07.20"]
[EventType "swiss"]
[EventCountry "CZE"]
[SourceTitle "playchess.com"]
[Source "ChessBase"]
[SourceQuality "1"]
[TimeControl "1200+10"]

{[%evp 22,63,73,83,129,137,130,89,135,128,178,193,198,249,274,222,255,204,262,211,308,314,304,321,376,264,388,361,369,355,336,203,266,256,327,300,333,322,304,195,1987,1887,1299,1220]} 1. d4 {[%emt 0:00:01]} d6 {[%emt 0:00:01]} 2. Nf3 {[%emt 0:00:02]} Nf6 {[%emt 0:00:26]} 3. c4 {[%emt 0:00:02]} g6 {[%emt 0:00:02]} 4. Nc3 {[%emt 0:00:01]} Bg7 {[%emt 0:00:02]} 5. e4 {[%emt 0:00:01]} O-O {[%emt 0:00:03]} 6. Be2 {[%emt 0:00:01]} e5 {[%emt 0:00:01]} 7. Be3 {[%emt 0:00:02]} Nc6 {[%emt 0:00:01]} 8. d5 {[%emt 0:00:03]} Ne7 {[%emt 0:00:01]} 9. Nd2 {[%emt 0:00:07]} Nd7 {[%emt 0:00:24]} 10. b4 {[%emt 0:00:09]} f5 {[%emt 0:00:05]} 11. f3 {[%emt 0:00:01]} f4 {[%emt 0:00:20]} 12. Bf2 {[%emt 0:00:01] White is more active.} a5 {[%emt 0:00:07] E92: King's Indian: Classical: 6 Be2 e5: 7 dxe5, 7 Be3 and Petrosian System without 7...Nbd7.} (12... c5 $142) 13. a3 $16 {[%emt 0:00:12]} c5 {[%emt 0:01:40]} 14. dxc6 {[%emt 0:00:59]} bxc6 {[%emt 0:00:08]} (14... Nxc6 $142 15. O-O Nf6) 15. O-O {[%emt 0:00:12] [#]} Qc7 $146 {[%emt 0:00:31]} (15... c5 $16) ({Predecessor:} 15... Nf6 16. b5 d5 17. exd5 cxd5 18. c5 Be6 19. Qa4 Kh8 20. Rfc1 g5 21. Rab1 Bf5 {1-0 (40) Petersen,T (1958)-Fjallheim,L (1919) Faroe Islands 2018}) 16. c5 $18 {[%emt 0:01:07]} d5 {[%emt 0:01:58]} 17. exd5 {[%emt 0:00:14]} cxd5 {[%emt 0:00:02] [#]} 18. Nxd5 {[%emt 0:00:35][%mdl 512]} Nxd5 {[%emt 0:00:26]} 19. Bc4 {[%emt 0:00:01][%cal Be2c4,Bc4d5,Bd5e4][%mdl 32]} N7f6 {[%emt 0:05:28]} 20. Ne4 {[%emt 0:00:01]} Kh8 {[%emt 0:00:53]} (20... Be6 $142) 21. Bxd5 {[%emt 0:00:02]} Rb8 {[%emt 0:04:47]} 22. Rb1 {[%emt 0:01:17]} Bf5 {[%emt 0:01:53]} 23. Qb3 {[%emt 0:00:01]} Rbd8 {[%emt 0:00:35]} (23... Rfd8 {was worth a try.}) 24. Nxf6 {[%emt 0:01:24] [#] And now Ne4 would win.} Bxb1 {[%emt 0:01:08]} 25. Rxb1 {[%emt 0:00:04] Black must now prevent Ne4.} Bxf6 {[%emt 0:00:15][%cal Bg7f6,Bf6e7,Be7c5][%mdl 32]} 26. Be4 {[%emt 0:00:25] Threatens to win with b5. A strong pair of Bishops.} Be7 {[%emt 0:00:35]} 27. c6 {[%emt 0:00:19][%cal Bc5c6,Bc6c7][%mdl 32]} Rd2 {[%emt 0:00:52]} 28. b5 {[%emt 0:00:56][%cal Bb4b5,Bb5b6][%mdl 32] Hoping for b6.} Rxf2 {[%emt 0:00:12]} 29. Kxf2 {[%emt 0:00:07] Strongly threatening b6.} Bc5+ {[%emt 0:00:52]} 30. Kf1 {[%emt 0:00:02] b6 is the strong threat.} Rd8 $2 {[%emt 0:00:11]} (30... Bb6 31. g4 Qe7) 31. b6 {[%emt 0:00:28]} Qd6 {[%emt 0:00:04]} 32. c7 {[%emt 0:00:03] Weighted Error Value: White=0.21 (precise) /Black=0.34} 1-0

[Event "Czech Open-Rapid 2022"]
[Site "Pardubice"]
[Date "2022.07.20"]
[Round "3.28"]
[White "Ptacek, Lubos"]
[Black "Dusek, Vladimir"]
[Result "1-0"]
[ECO "B33"]
[WhiteElo "2049"]
[BlackElo "1596"]
[Annotator "TA"]
[PlyCount "79"]
[EventDate "2022.07.20"]
[EventType "swiss"]
[EventCountry "CZE"]
[SourceTitle "playchess.com"]
[Source "ChessBase"]
[SourceQuality "1"]
[TimeControl "1200+10"]

{[%evp 20,79,28,-16,29,-2,0,22,214,211,306,310,297,242,281,303,306,304,371,375,475,455,443,261,264,249,244,218,239,220,247,237,239,239,516,497,495,497,729,705,666,574,490,386,1680,1652,29961,29959,10053,6299,1047,602,6081,5591,6211,6211,29961,29961,7739,7491,6168,6133]} 1. e4 {[%emt 0:00:04]} c5 {[%emt 0:00:02]} 2. Nf3 {[%emt 0:00:04]} Nc6 {[%emt 0:00:01]} 3. d4 {[%emt 0:00:04]} cxd4 {[%emt 0:00:03]} 4. Nxd4 {[%emt 0:00:02]} Nf6 {[%emt 0:00:06]} 5. Nc3 {[%emt 0:00:07]} a6 {[%emt 0:00:08]} 6. Be3 {[%emt 0:00:20]} d6 {[%emt 0:00:07]} 7. Be2 {[%emt 0:00:10]} g6 {[%emt 0:00:03]} 8. O-O {[%emt 0:00:03]} Bg7 {[%emt 0:00:02]} 9. f4 {[%emt 0:00:29]} O-O {[%emt 0:00:09]} 10. Bf3 {[%emt 0:00:26]} Qc7 {[%emt 0:00:34]} 11. Kh1 {[%emt 0:00:22]} Bd7 {[%emt 0:00:47] B73: Sicilian Dragon: Classical System without 9 Nb3.} 12. Qd2 {[%emt 0:00:53]} Rad8 {[%emt 0:00:50]} 13. Rad1 {[%emt 0:00:27]} Ng4 $2 {[%emt 0:01:36] [#]} (13... b5 $11) 14. Nd5 $146 {[%emt 0:00:38]} ({Predecessor:} 14. Nxc6 bxc6 15. Bd4 Nf6 16. Ne2 c5 17. Bc3 Qb8 18. Ng3 Bb5 19. Be2 Qb7 20. Qe3 Bxe2 21. Qxe2 {½-½ (30) Buldrova,M-Pekarkova,E Plzen 1993}) 14... Qb8 {[%emt 0:00:58]} (14... Nxe3 {might work better.} 15. Nxc7 Nxf1 16. Rxf1 Nxd4) 15. Nxc6 {[%emt 0:00:50]} bxc6 {[%emt 0:00:21]} 16. Nxe7+ {[%emt 0:01:07]} Kh8 {[%emt 0:00:06]} 17. Bxg4 {[%emt 0:00:34]} Bxg4 {[%emt 0:00:22]} 18. Nxc6 {[%emt 0:00:12]} Qxb2 {[%emt 0:00:48]} 19. Rb1 {[%emt 0:00:13]} ({Resist} 19. Nxd8 Bxd1 20. Rxd1 Rxd8 $18) 19... Qxa2 {[%emt 0:00:37]} 20. Nxd8 {[%emt 0:00:05]} Rxd8 {[%emt 0:00:05]} 21. e5 {[%emt 0:00:52]} (21. f5 $142) 21... d5 {[%emt 0:02:03]} 22. Ra1 {[%emt 0:00:59]} Qc4 {[%emt 0:00:06]} 23. h3 {[%emt 0:00:36]} Bf5 {[%emt 0:00:03]} 24. c3 {[%emt 0:00:08]} Be4 {[%emt 0:00:21]} 25. Rfe1 {[%emt 0:00:32]} Qc8 {[%emt 0:00:20]} 26. Kh2 {[%emt 0:00:26]} f6 $2 {[%emt 0:00:42]} (26... Re8 27. Bd4 h5) 27. exf6 {[%emt 0:00:14]} Bxf6 {[%emt 0:00:20]} 28. Bd4 {[%emt 0:00:03]} Rf8 {[%emt 0:02:39]} (28... Qe6 $142 29. c4 Kg8) 29. Bxf6+ {[%emt 0:00:15]} Rxf6 {[%emt 0:00:02]} 30. Qd4 {[%emt 0:00:02]} Qf5 {[%emt 0:00:31]} 31. g3 {[%emt 0:01:28] [#] White threatens Rxa6 and mate.} Kg7 $2 {[%emt 0:00:59]} (31... Kg8 32. Re2 Rc6) 32. Rxa6 Bf3 {Against Re2} 33. Qxf6+ {[%emt 0:01:00]} Qxf6 {[%emt 0:00:33]} 34. Rxf6 {[%emt 0:00:16]} Kxf6 {[%emt 0:00:28][%mdl 4096] Endgame KR-KB} 35. Kg1 {[%emt 0:00:23] [#] Strongly threatening Kf2.} g5 {[%emt 0:00:08]} 36. Kf2 {[%emt 0:00:10]} g4 {[%emt 0:01:39]} 37. Re5 {[%emt 0:00:57] Intending hxg4 and mate.} Bd1 {[%emt 0:01:08]} 38. Rxd5 {[%emt 0:00:25]} Bb3 {[%emt 0:00:13]} 39. Rb5 {[%emt 0:00:28]} Be6 {[%emt 0:00:19]} 40. hxg4 {[%emt 0:00:13] Black did not feel at home in the position after the opening.  Weighted Error Value: White=0.47/Black=1.35} 1-0

[Event "Czech Open-Rapid 2022"]
[Site "Pardubice"]
[Date "2022.07.20"]
[Round "3.29"]
[White "Maklakova, Naomi"]
[Black "Ibrahim, Emad Eldin"]
[Result "1/2-1/2"]
[ECO "A43"]
[WhiteElo "1548"]
[BlackElo "2028"]
[Annotator "TA"]
[PlyCount "137"]
[EventDate "2022.07.20"]
[EventType "swiss"]
[EventCountry "CZE"]
[SourceTitle "playchess.com"]
[Source "ChessBase"]
[SourceQuality "1"]
[TimeControl "1200+10"]

{[%evp 11,137,25,28,22,22,26,26,22,41,-18,-16,-60,-61,-61,-53,-51,-48,-57,-42,-93,-85,-85,-31,-210,-202,-226,-227,-220,-217,-218,-233,-366,-77,-77,-81,-133,-130,-117,-131,-127,-129,-188,-147,-219,-162,-143,-153,-144,-123,-176,-175,-239,-227,-244,-241,-245,-241,-261,-210,-612,-510,-612,-602,-435,-458,-478,-478,-478,-478,-429,-362,-290,-63,-118,-70,-763,-713,-556,-462,-428,-421,-29967,-29969,-29969,-29973,-29973,-29973,-29972,0,0,0,0,0,0,0,0,0,0,0,0,0,0,0,0,0,0,0,0,0,0,0,0,0,0,0,0,0,0,0,0,0,0,0,0,0,0,0,0]} 1. d4 {[%emt 0:00:02]} Nf6 {[%emt 0:00:02]} 2. Nf3 {[%emt 0:00:04]} c5 {[%emt 0:00:02]} 3. d5 {[%emt 0:00:02]} b5 {[%emt 0:00:02]} 4. c4 {[%emt 0:00:01]} b4 {[%emt 0:00:11]} 5. Nbd2 {[%emt 0:00:10]} g6 {[%emt 0:00:02]} 6. e4 {[%emt 0:00:02]} d6 $1 {[%emt 0:00:01]} 7. Bd3 {[%emt 0:00:10] A57: Benko/Volga Gambit.} Bg7 {[%emt 0:00:03]} 8. O-O {[%emt 0:00:06]} O-O {[%emt 0:00:03]} 9. Re1 {[%emt 0:00:15] White has an edge.} e5 {[%emt 0:00:35]} 10. dxe6 {[%emt 0:00:39]} (10. a3 $14) 10... Bxe6 $11 {[%emt 0:00:02]} 11. e5 {[%emt 0:00:01]} dxe5 {[%emt 0:00:41]} 12. Nxe5 {[%emt 0:00:02] [#]} Nc6 $1 {[%emt 0:00:51]} 13. Nxc6 {[%emt 0:00:25]} Qxd3 {[%emt 0:00:02] [#]} 14. Ne5 $146 {[%emt 0:00:11]} ({Predecessor:} 14. Nb3 Qxc4 15. Bg5 Qb5 16. Qf3 Nd5 17. Ne7+ Nxe7 18. Bxe7 c4 19. Bxf8 Rxf8 20. Nd2 Bxb2 {0-1 (32) Krug,N (2199)-Wild,R (2176) Bayern 2014}) 14... Qd6 {[%emt 0:00:21]} 15. Nb3 {[%emt 0:00:21]} (15. Ndf3 $15 Qxd1 16. Rxd1) 15... Qxd1 $17 {[%emt 0:00:34]} 16. Rxd1 {[%emt 0:00:01]} Ne4 {[%emt 0:00:02]} (16... Rac8 $17) 17. Nd3 $2 {[%emt 0:00:37]} (17. Nc6 $1 $15) 17... Rfd8 $19 {[%emt 0:00:41]} 18. Be3 {[%emt 0:00:38]} Bxc4 {[%emt 0:00:26]} 19. Ndxc5 {[%emt 0:00:37]} Nxc5 {[%emt 0:00:23]} 20. Bxc5 {[%emt 0:00:15]} Bxb2 {[%emt 0:00:34] This bishop pair is nice.} 21. Rab1 {[%emt 0:00:15]} (21. Rxd8+ {might work better.} Rxd8 22. Re1) 21... Bxb3 $2 {[%emt 0:01:17]} (21... Rxd1+ $19 {and Black stays clearly on top.} 22. Rxd1 a5) 22. axb3 {[%emt 0:00:05]} a5 {[%emt 0:00:22] Strongly threatening ...Rxd1+.} 23. g3 {[%emt 0:00:45]} ({White should try} 23. Rxd8+ Rxd8 24. Bb6) 23... Bc3 $17 {[%emt 0:00:06]} 24. Rxd8+ {[%emt 0:00:12]} Rxd8 {[%emt 0:00:02][%mdl 4096] Endgame KRB-KRB} 25. Bb6 {[%emt 0:00:01]} Ra8 {[%emt 0:00:06]} 26. Bc5 {[%emt 0:00:32]} (26. Rd1 $17) 26... f5 {[%emt 0:01:26]} 27. Kg2 {[%emt 0:01:10]} (27. Kf1 $17) 27... Kf7 {[%emt 0:00:09] And now ...a4 would win.} 28. Kf3 {[%emt 0:00:05]} Ke6 {[%emt 0:00:22] White must now prevent ...a4.} 29. Rd1 {[%emt 0:00:04]} Ra6 {[%emt 0:01:22] Prevents Rd6+. aiming for ...a4.} 30. Ke3 {[%emt 0:00:19]} (30. Ke2 $17) 30... Rc6 $1 $19 {[%emt 0:00:19]} 31. Bf8 {[%emt 0:00:26]} (31. Ba7 {was worth a try.}) 31... Bf6 {[%emt 0:00:31]} 32. Rd3 {[%emt 0:01:56]} Be5 {[%emt 0:00:39]} 33. Bh6 {[%emt 0:01:01]} Rc2 {[%emt 0:00:23]} 34. Bg5 {[%emt 0:01:31]} Bd6 {[%emt 0:00:14]} 35. Rd2 $2 {[%emt 0:00:47]} (35. Kf3) 35... Rc3+ {[%emt 0:00:38]} 36. Rd3 {[%emt 0:00:12]} Bc5+ {[%emt 0:00:04]} 37. Ke2 {[%emt 0:00:05]} Rxd3 {[%emt 0:04:24]} 38. Kxd3 {[%emt 0:00:02]} Bxf2 {[%emt 0:00:06] KB-KB} 39. Bd8 {[%emt 0:00:01]} Bg1 {[%emt 0:00:38]} 40. h3 {[%emt 0:00:02]} Bh2 {[%emt 0:00:34]} 41. g4 {[%emt 0:00:01]} Kd5 $2 {[%emt 0:00:25]} ({Better is} 41... Bd6 $19 {Hoping for ...f4.} 42. gxf5+ gxf5 43. Bxa5 Ke5) 42. Bxa5 {[%emt 0:00:12] [#]} (42. gxf5 $1 $15 gxf5 43. Bxa5) 42... Bd6 {[%emt 0:00:02]} (42... fxg4 $1 $17 43. hxg4 Bd6) 43. Bb6 $2 {[%emt 0:00:52][%mdl 8192]} (43. gxf5 $15 gxf5 44. Ke3) 43... f4 {[%emt 0:01:03]} 44. Bf2 {[%emt 0:00:21]} Be5 {[%emt 0:00:12]} 45. Be1 {[%emt 0:01:24] [#]} Bc3 {[%emt 0:00:13]} 46. Bxc3 {[%emt 0:00:02]} (46. Bh4 $19 Bd4 47. Bg5) 46... bxc3 {[%emt 0:00:02]} 47. Kxc3 {[%emt 0:00:02] K3P-K3P} g5 {[%emt 0:00:01]} 48. b4 {[%emt 0:00:23]} h6 {[%emt 0:00:11]} 49. Kd3 {[%emt 0:00:10]} Kd6 $2 {[%emt 0:00:05]} (49... Ke5 {mates} 50. Kc3 Ke4 51. b5 Kd5 52. Kd2 Kc5 53. Ke2 Kxb5 54. Kf1 Kc5 55. Kg2 Kd4 56. Kf3 Ke5 57. Kg2 Ke4 58. Kf2 f3 59. h4 gxh4 60. g5 hxg5 61. Ke1 Ke3 62. Kd1 f2 63. Kc2 Kd4 64. Kd1 f1=Q+ 65. Kc2 Kc4 66. Kd2 Qf2+ 67. Kc1 Kc3 68. Kd1 Qf1#) 50. Kd4 {[%emt 0:00:08] The position is equal.} Kc6 {[%emt 0:00:01]} 51. Kc4 $1 {[%emt 0:00:09]} Kb6 {[%emt 0:00:03]} (51... f3 52. Kd3 $18) 52. Kd4 {[%emt 0:00:39]} Kb5 {[%emt 0:00:04]} (52... Kc6 $5) 53. Kc3 {[%emt 0:00:06]} Kb6 {[%emt 0:00:45]} 54. Kd4 {[%emt 0:00:02]} Kb7 {[%emt 0:00:37]} 55. Kd3 {[%emt 0:00:15]} Ka7 {[%emt 0:00:05]} 56. Kc3 {[%emt 0:00:20]} Kb6 {[%emt 0:00:05]} 57. Kd4 {[%emt 0:00:02]} Kb5 {[%emt 0:00:02]} (57... Kc6 $5) 58. Kc3 {[%emt 0:00:02]} Ka4 {[%emt 0:00:57]} 59. Kc4 {[%emt 0:00:11]} f3 {[%emt 0:00:19]} 60. Kd3 {[%emt 0:00:03] Threatening mate with Ke3.} Kxb4 $11 {[%emt 0:00:11] K3P-KPP} 61. Ke3 {[%emt 0:00:02]} Kc3 {[%emt 0:00:05]} 62. Kxf3 {[%emt 0:00:05] Ke4 would kill now. KPP-KPP} Kd3 {[%emt 0:00:02]} 63. Kf2 {[%emt 0:00:06]} Kd2 {[%emt 0:00:35]} 64. Kf3 {[%emt 0:02:37] Intending Ke4 and mate.} Ke1 {[%emt 0:00:03]} 65. Ke3 {[%emt 0:00:04]} Kf1 $1 {[%emt 0:00:17] ( -> ...Kg2)} 66. Kf3 $1 {[%emt 0:00:01]} Kg1 {[%emt 0:00:13]} 67. Kg3 $1 {[%emt 0:00:00]} Kh1 {[%emt 0:00:41]} 68. h4 {[%emt 0:00:01]} Kg1 {[%emt 0:00:06]} 69. h5 {[%emt 0:00:03] Black had all chances to win.  Weighted Error Value: White=0.55/Black=0.33} 1/2-1/2

[Event "Czech Open-Rapid 2022"]
[Site "Pardubice"]
[Date "2022.07.20"]
[Round "3.30"]
[White "Mlejnek, Stanislav"]
[Black "Zdrazil, Tomas"]
[Result "0-1"]
[ECO "B92"]
[WhiteElo "1666"]
[BlackElo "2122"]
[Annotator "TA"]
[PlyCount "54"]
[EventDate "2022.07.20"]
[EventType "swiss"]
[EventCountry "CZE"]
[SourceTitle "playchess.com"]
[Source "ChessBase"]
[SourceQuality "1"]
[TimeControl "1200+10"]

{[%evp 21,54,0,0,-60,-57,-64,-56,-89,-112,-101,-81,-106,-100,-112,-94,-120,-116,-154,-160,-255,-255,-258,-251,-250,-248,-241,-243,-272,-254,-354,-324,-549,-471,-29996,-29997]} 1. e4 {[%emt 0:00:03]} c5 {[%emt 0:00:01]} 2. Nf3 {[%emt 0:00:02]} d6 {[%emt 0:00:01]} 3. d4 {[%emt 0:00:01]} cxd4 {[%emt 0:00:02]} 4. Nxd4 {[%emt 0:00:02]} Nf6 {[%emt 0:00:01]} 5. Nc3 {[%emt 0:00:02]} a6 {[%emt 0:00:02]} 6. Be2 {[%emt 0:00:25]} e5 {[%emt 0:00:01]} 7. Nb3 {[%emt 0:00:09]} Be7 {[%emt 0:00:02]} 8. O-O {[%emt 0:00:05]} Be6 {[%emt 0:00:19]} 9. Be3 {[%emt 0:00:12]} O-O {[%emt 0:00:28]} 10. f4 {[%emt 0:00:47]} exf4 {[%emt 0:00:03]} 11. Bxf4 {[%emt 0:00:26] 11.Bxf4 is better than 11.Rxf4.} Nc6 {[%emt 0:00:37]} 12. Nd5 {[%emt 0:00:21] B92: Sicilian Najdorf: 6 Be2.} (12. Qd2 $11) 12... Nxe4 $15 {[%emt 0:04:43] [#]} 13. Nxe7+ $146 {[%emt 0:00:42]} ({Predecessor:} 13. Bf3 Bxd5 14. Qxd5 Qb6+ 15. Nd4 Nf6 {0-1 (15) Vollbrecht,L (1883)-Johansson,J (2081) Berlin 2019}) 13... Qxe7 {[%emt 0:05:15]} 14. Bd3 {[%emt 0:00:54] Black is slightly better.} Bxb3 {[%emt 0:00:03]} 15. axb3 {[%emt 0:00:59]} Rad8 {[%emt 0:00:17]} 16. Qh5 {[%emt 0:01:29]} d5 {[%emt 0:04:11][%cal Bd6d5,Bd5e4][%mdl 32]} 17. Rae1 {[%emt 0:00:25]} g6 {[%emt 0:01:17]} 18. Qe2 {[%emt 0:02:13]} f5 {[%emt 0:00:21]} 19. c4 {[%emt 0:00:14]} Nb4 {[%emt 0:01:21] Black is more active.} 20. Bxe4 {[%emt 0:01:45]} (20. cxd5 $17 Nxd3 21. Qxd3) 20... dxe4 $19 {[%emt 0:00:16]} ({Resist} 20... Qxe4 21. Qd2 dxc4 22. Qxb4 Qd4+ 23. Be3 $18) 21. Bh6 {[%emt 0:00:45]} Rf7 {[%emt 0:00:14][%cal Bf8f7,Bf7d7,Bd7d8][%mdl 32]} 22. Rd1 {[%emt 0:00:41]} Rxd1 {[%emt 0:00:22]} 23. Rxd1 {[%emt 0:00:23]} Nd3 {[%emt 0:00:02]} 24. Qe3 {[%emt 0:02:11]} Qd6 {[%emt 0:01:53] ...f4 is the strong threat.} ({Don't take} 24... Nxb2 25. Rd5 Qf6 26. Qa7 $18) 25. Qa7 {[%emt 0:00:16]} Rd7 {[%emt 0:00:10]} 26. Qa8+ $2 {[%emt 0:00:39]} (26. h4) 26... Rd8 {[%emt 0:00:04] ( -> ...Qd4+)} 27. Qxb7 {[%emt 0:00:02] [#]} (27. Qa7 $19 f4 28. h4) 27... Qd4+ {[%emt 0:00:04] White did not feel at home in the position after the opening.  Weighted Error Value: White=0.87/Black=0.10 (very precise)} 0-1

[Event "Czech Open-Rapid 2022"]
[Site "Pardubice"]
[Date "2022.07.20"]
[Round "3.31"]
[White "Michelle Catherina, P."]
[Black "Egri, Tomas"]
[Result "1-0"]
[ECO "C03"]
[WhiteElo "2141"]
[BlackElo "1783"]
[Annotator "TA"]
[PlyCount "81"]
[EventDate "2022.07.20"]
[EventType "swiss"]
[EventCountry "CZE"]
[SourceTitle "playchess.com"]
[Source "ChessBase"]
[SourceQuality "1"]
[TimeControl "1200+10"]

{[%evp 14,81,21,5,17,26,93,35,35,38,30,39,66,48,67,72,954,962,962,949,952,950,957,891,885,783,1006,999,1030,1014,1038,1059,1285,1214,1301,1286,1184,834,1233,1228,1343,1342,1150,1238,1221,1172,1197,1183,1412,1255,1231,1208,1209,1179,1412,1104,1102,1091,1139,1135,1119,1093,1108,1064,1796,1016,29974,29978,29978,29979]} 1. d4 {[%emt 0:00:05]} e6 {[%emt 0:00:04]} 2. e4 {[%emt 0:00:13]} d5 {[%emt 0:00:02]} 3. Nd2 {[%emt 0:00:01]} dxe4 {[%emt 0:00:12]} 4. Nxe4 {[%emt 0:00:01]} Nf6 {[%emt 0:00:02]} 5. Bg5 {[%emt 0:01:02]} Be7 {[%emt 0:00:02]} 6. Bxf6 {[%emt 0:00:09]} Bxf6 {[%emt 0:00:03]} 7. Nf3 {[%emt 0:00:05]} O-O {[%emt 0:00:26]} 8. c3 {[%emt 0:00:19]} Be7 {[%emt 0:00:04] C13: French: Classical System: 4 Bg5 Be7, Alekhine-Chatard Attack.} 9. Bd3 {[%emt 0:00:21]} b6 {[%emt 0:00:06] [#]} (9... Nd7 $11 {remains equal.}) 10. Qe2 {[%emt 0:01:16]} (10. h4 $1 $16) 10... Bb7 $14 {[%emt 0:00:21] White is slightly better.} 11. h4 {Black must now prevent Neg5.} Nd7 12. O-O-O {[%emt 0:01:05]} Nf6 {[%emt 0:02:20]} 13. Neg5 {[%emt 0:02:06]} h6 {[%emt 0:00:54]} 14. Ne5 {[%emt 0:01:27][%cal Oe2c2] [#] And now Qc2! would win. 0x0.00144c11c6a5dp-1022s more active pieces. The black rooks are badly placed. Pair of Knights!} Nd5 $146 {[%emt 0:08:02][%mdl 8192] A mistake that costs the game.} (14... hxg5 $2 15. hxg5 Ne4 16. Bxe4 Bxe4 17. Qxe4 Bxg5+ 18. Kb1 $18) (14... Bxg2 $2 15. Rhg1 Bd5 16. Nh3 $18) (14... Bd6 $16) ({Predecessor:} 14... Bxg2 15. Rhg1 Bb7 16. Rg3 hxg5 17. hxg5 Nd5 18. Qh5 Bxg5+ 19. Rxg5 Nf6 20. Rxg7+ {1-0 (20) Antoniou,A (2168)-Damianou,I (1749) Nicosia 2015}) 15. Bh7+ $18 {[%emt 0:01:38]} Kh8 {[%emt 0:00:07]} 16. Nexf7+ {[%emt 0:00:16]} Rxf7 {[%emt 0:00:08]} 17. Nxf7+ {[%emt 0:00:01]} Kxh7 {[%emt 0:00:05]} 18. Nxd8 {[%emt 0:00:02]} Rxd8 {[%emt 0:00:03]} 19. Qxe6 {[%emt 0:00:12]} Re8 {[%emt 0:00:23]} 20. Qf5+ {[%emt 0:01:21]} Kh8 {[%emt 0:00:02]} 21. Rde1 {[%emt 0:00:55]} Rf8 {[%emt 0:00:11]} 22. Qd7 {[%emt 0:00:16]} Bd6 {[%emt 0:00:11]} 23. Re8 {[%emt 0:00:26]} Rxe8 {[%emt 0:01:04]} 24. Qxe8+ {[%emt 0:00:01]} Kh7 {[%emt 0:00:03]} 25. h5 {[%emt 0:02:27]} Nf4 {[%emt 0:00:23]} 26. f3 {[%emt 0:00:07]} a5 {[%emt 0:00:32]} 27. Qf7 {[%emt 0:00:44]} Bd5 {[%emt 0:00:11]} 28. Qf5+ {[%emt 0:00:10]} Kg8 {[%emt 0:00:11]} 29. Re1 {[%emt 0:00:48] White wants to mate with Re8+.} Bf7 {[%emt 0:00:05] Prevents Re8+.} 30. g4 {[%emt 0:00:51]} Ng2 {[%emt 0:01:17]} 31. Re2 {[%emt 0:01:35]} Nf4 {[%emt 0:00:47]} 32. Re4 {[%emt 0:00:35]} g5 {[%emt 0:03:07]} 33. hxg6 {[%emt 0:00:57]} Bxg6 {[%emt 0:00:06] [#]} 34. Rxf4 $1 {[%emt 0:00:20]} Bxf5 {[%emt 0:00:09]} 35. Rxf5 {[%emt 0:00:01][%mdl 4096] Endgame KR-KB} Kg7 {[%emt 0:00:03]} 36. Kc2 {[%emt 0:00:06]} Kg6 {[%emt 0:00:09]} 37. Kd3 {[%emt 0:00:02]} Kg7 {[%emt 0:00:36]} 38. c4 {[%emt 0:00:07]} c5 {[%emt 0:00:44]} 39. dxc5 {[%emt 0:00:05]} Bxc5 {[%emt 0:00:05] [#]} 40. Rxc5 $1 {[%emt 0:00:22]} bxc5 {[%emt 0:00:02]} 41. Ke4 {[%emt 0:00:02] Weighted Error Value: White=0.17 (very precise) /Black=0.40} 1-0